[Event "49th Rilton Cup 2019-20"]
[Site "Stockholm"]
[Date "2019.12.27"]
[Round "1.1"]
[White "Kollars, Dmitrij"]
[Black "Abdrlauf, Elham"]
[Result "1-0"]
[ECO "C10"]
[WhiteElo "2584"]
[BlackElo "2328"]
[Annotator "ChessBase"]
[PlyCount "82"]
[EventDate "2019.12.27"]
[EventType "swiss"]
[EventCountry "SWE"]
[SourceTitle "playchess.com"]
[Source "ChessBase"]
[SourceQuality "1"]
[TimeControl "30/5400+30:1800+30"]

1. e4 {[%emt 0:00:00]} e6 {[%emt 0:00:00]} 2. d4 {[%emt 0:00:00]} d5 {[%emt 0:00:00]} 3. Nd2 {[%emt 0:00:15]} dxe4 {[%emt 0:00:11]} 4. Nxe4 {[%emt 0:00:06]} Nd7 {[%emt 0:00:06]} 5. Nf3 {[%emt 0:00:49]} Ngf6 {[%emt 0:00:02]} 6. Nxf6+ {[%emt 0:02:12]} Nxf6 {[%emt 0:00:36]} 7. g3 {[%emt 0:00:11]} b6 {[%emt 0:11:18]} 8. Bb5+ {[%emt 0:00:39]} Bd7 {[%emt 0:00:07]} 9. a4 {[%emt 0:00:29]} a6 {[%emt 0:02:15]} 10. Be2 {[%emt 0:01:22]} Bc6 {[%emt 0:02:34]} 11. O-O {[%emt 0:00:19]} Be7 {[%emt 0:09:45]} 12. a5 {[%emt 0:05:36]} b5 {[%emt 0:01:11]} 13. Ne5 {[%emt 0:00:14]} Bb7 {[%emt 0:00:21]} 14. c4 {[%emt 0:01:32]} O-O {[%emt 0:14:38]} 15. cxb5 {[%emt 0:24:53]} axb5 {[%emt 0:00:17]} 16. Bf3 {[%emt 0:08:27]} Bxf3 {[%emt 0:11:16]} 17. Qxf3 {[%emt 0:00:18]} Qxd4 {[%emt 0:01:37]} 18. Nc6 {[%emt 0:00:48]} Qd7 {[%emt 0:00:02]} 19. Bg5 {[%emt 0:02:41]} Nd5 {[%emt 0:03:40]} 20. Bxe7 {[%emt 0:01:59]} Nxe7 {[%emt 0:02:10]} 21. Rfc1 {[%emt 0:00:12]} Nxc6 {[%emt 0:05:31]} 22. Qxc6 {[%emt 0:01:34]} Qxc6 {[%emt 0:05:37]} 23. Rxc6 {[%emt 0:00:05]} Rfc8 {[%emt 0:08:14]} 24. b4 {[%emt 0:01:49]} Kf8 {[%emt 0:04:25]} 25. Rac1 {[%emt 0:01:08]} Ra7 {[%emt 0:00:10]} 26. R1c5 {[%emt 0:01:55]} Ke7 {[%emt 0:01:24]} 27. Rxb5 {[%emt 0:00:33]} Kd7 {[%emt 0:00:03]} 28. Rc4 {[%emt 0:01:35]} c6 {[%emt 0:05:25]} 29. Rh5 {[%emt 0:05:07]} h6 {[%emt 0:00:08]} 30. Rg4 {[%emt 0:04:15]} g6 {[%emt 0:00:02]} 31. Rxh6 {[%emt 0:32:39]} c5 {[%emt 0:30:19]} 32. Rh7 {[%emt 0:02:44]} Kd6 {[%emt 0:00:36]} 33. bxc5+ {[%emt 0:02:57]} Rxc5 {[%emt 0:00:28]} 34. Rxg6 {[%emt 0:00:16]} Rcxa5 {[%emt 0:00:11]} 35. Rf6 {[%emt 0:11:42]} Rf5 {[%emt 0:00:15]} 36. Rxf5 {[%emt 0:00:10]} exf5 {[%emt 0:00:02]} 37. Kg2 {[%emt 0:00:34]} Ke5 {[%emt 0:00:38]} 38. Rg7 {[%emt 0:02:51]} f4 {[%emt 0:03:16]} 39. g4 {[%emt 0:02:00]} Ke4 {[%emt 0:00:03]} 40. Rg8 {[%emt 0:01:08]} Re7 {[%emt 0:01:47]} 41. h4 {[%emt 0:01:04]} Kd5 1-0

[Event "49th Rilton Cup 2019-20"]
[Site "Stockholm"]
[Date "2019.12.27"]
[Round "1.2"]
[White "Furhoff, Johan"]
[Black "Volkov, Sergey"]
[Result "1/2-1/2"]
[ECO "C05"]
[WhiteElo "2327"]
[BlackElo "2578"]
[Annotator "ChessBase"]
[PlyCount "91"]
[EventDate "2019.12.27"]
[EventType "swiss"]
[EventCountry "SWE"]
[SourceTitle "playchess.com"]
[Source "ChessBase"]
[SourceQuality "1"]
[TimeControl "30/5400+30:1800+30"]

1. e4 {[%emt 0:00:00]} e6 {[%emt 0:00:00]} 2. d4 {[%emt 0:00:00]} d5 {[%emt 0:00:00]} 3. Nd2 {[%emt 0:00:00]} Nf6 {[%emt 0:00:05]} 4. e5 {[%emt 0:00:00]} Nfd7 {[%emt 0:00:06]} 5. c3 {[%emt 0:00:09]} c5 {[%emt 0:00:13]} 6. f4 {[%emt 0:00:06]} Nc6 {[%emt 0:00:17]} 7. Ndf3 {[%emt 0:00:13]} Qb6 {[%emt 0:00:13]} 8. Ne2 {[%emt 0:00:28]} a5 {[%emt 0:01:37]} 9. g3 {[%emt 0:05:41]} a4 {[%emt 0:00:51]} 10. Bh3 {[%emt 0:04:35]} a3 {[%emt 0:01:32]} 11. b3 {[%emt 0:04:08]} cxd4 {[%emt 0:00:42]} 12. Nexd4 {[%emt 0:00:34]} Nxd4 {[%emt 0:01:59]} 13. Nxd4 {[%emt 0:06:36]} Nb8 {[%emt 0:03:28]} 14. Be3 {[%emt 0:05:22]} Nc6 {[%emt 0:01:55]} 15. O-O {[%emt 0:22:44]} Bc5 {[%emt 0:04:00]} 16. Qd2 {[%emt 0:00:44]} O-O {[%emt 0:02:06]} 17. b4 {[%emt 0:02:48]} Bxd4 {[%emt 0:00:52]} 18. Bxd4 {[%emt 0:00:26]} Nxd4 {[%emt 0:00:08]} 19. cxd4 {[%emt 0:00:06]} Bd7 {[%emt 0:02:19]} 20. Rfc1 {[%emt 0:04:00]} Rfc8 {[%emt 0:02:37]} 21. Rc5 {[%emt 0:00:52]} Bb5 {[%emt 0:13:15]} 22. f5 {[%emt 0:07:13]} exf5 {[%emt 0:00:31]} 23. Bxf5 {[%emt 0:00:26]} Rxc5 {[%emt 0:03:11]} 24. dxc5 {[%emt 0:00:19]} Qc6 {[%emt 0:08:59]} 25. Re1 {[%emt 0:03:02]} Re8 {[%emt 0:02:49]} 26. Qc3 {[%emt 0:04:11]} Qa6 {[%emt 0:03:15]} 27. Re3 {[%emt 0:07:12]} g6 {[%emt 0:01:36]} 28. Bg4 {[%emt 0:00:32]} h5 {[%emt 0:03:27]} 29. Bh3 {[%emt 0:02:24]} Qa4 {[%emt 0:07:36]} 30. e6 {[%emt 0:07:13]} Qd1+ {[%emt 0:01:14]} 31. Re1 {[%emt 0:30:10]} d4 {[%emt 0:30:14]} 32. Rxd1 {[%emt 0:00:12]} dxc3 {[%emt 0:00:16]} 33. Rc1 {[%emt 0:00:10]} Rd8 {[%emt 0:03:27]} 34. e7 {[%emt 0:00:49]} Re8 {[%emt 0:01:47]} 35. Bf1 {[%emt 0:03:44]} Bxf1 {[%emt 0:04:59]} 36. Kxf1 {[%emt 0:00:06]} Rxe7 {[%emt 0:00:03]} 37. Rxc3 {[%emt 0:00:12]} Re4 {[%emt 0:00:05]} 38. b5 {[%emt 0:01:12]} Ra4 {[%emt 0:00:20]} 39. Ke2 {[%emt 0:01:29]} Kf8 {[%emt 0:00:52]} 40. c6 {[%emt 0:02:02]} bxc6 {[%emt 0:00:12]} 41. bxc6 {[%emt 0:00:06]} Ra8 {[%emt 0:00:26]} 42. Kd3 {[%emt 0:00:46]} Ke7 {[%emt 0:00:14]} 43. Kc4 {[%emt 0:05:09]} Kd6 {[%emt 0:04:55]} 44. Kb5 {[%emt 0:00:25]} Rb8+ {[%emt 0:05:40]} 45. Ka4 {[%emt 0:01:07]} Kc7 {[%emt 0:01:06]} 46. Kxa3 {[%emt 0:02:18]} 1/2-1/2

[Event "49th Rilton Cup 2019-20"]
[Site "Stockholm"]
[Date "2019.12.27"]
[Round "1.4"]
[White "Estremera Panos, Sergio"]
[Black "Meshkovs, Nikita"]
[Result "0-1"]
[ECO "E29"]
[WhiteElo "2307"]
[BlackElo "2558"]
[Annotator "ChessBase"]
[PlyCount "96"]
[EventDate "2019.12.27"]
[EventType "swiss"]
[EventCountry "SWE"]
[SourceTitle "playchess.com"]
[Source "ChessBase"]
[SourceQuality "1"]
[TimeControl "30/5400+30:1800+30"]

1. d4 {[%emt 0:00:04]} Nf6 {[%emt 0:00:00]} 2. c4 {[%emt 0:00:14]} e6 {[%emt 0:00:09]} 3. Nc3 {[%emt 0:00:23]} Bb4 {[%emt 0:00:14]} 4. e3 {[%emt 0:00:28]} O-O {[%emt 0:00:10]} 5. Bd3 {[%emt 0:01:20]} c5 {[%emt 0:00:09]} 6. a3 {[%emt 0:03:06]} Bxc3+ {[%emt 0:00:09]} 7. bxc3 {[%emt 0:00:07]} Nc6 {[%emt 0:00:19]} 8. Ne2 {[%emt 0:00:31]} b6 {[%emt 0:01:20]} 9. O-O {[%emt 0:02:42]} Ba6 {[%emt 0:02:35]} 10. e4 {[%emt 0:03:46]} Ne8 {[%emt 0:03:14]} 11. f4 {[%emt 0:01:49]} f5 {[%emt 0:02:37]} 12. d5 {[%emt 0:02:58]} exd5 {[%emt 0:08:41]} 13. cxd5 {[%emt 0:03:29]} Bxd3 {[%emt 0:00:08]} 14. Qxd3 {[%emt 0:00:10]} fxe4 {[%emt 0:00:11]} 15. Qxe4 {[%emt 0:08:02]} Nd6 {[%emt 0:02:15]} 16. Qc2 {[%emt 0:22:53]} Na5 {[%emt 0:00:49]} 17. Ng3 {[%emt 0:09:24]} Qf6 {[%emt 0:13:44]} 18. f5 {[%emt 0:08:48]} Rae8 {[%emt 0:07:29]} 19. Bf4 {[%emt 0:01:28]} Nb5 {[%emt 0:06:35]} 20. Rac1 {[%emt 0:03:01]} Nxa3 {[%emt 0:01:24]} 21. Qa4 {[%emt 0:00:26]} N3c4 {[%emt 0:01:11]} 22. Qxd7 {[%emt 0:00:40]} Qf7 {[%emt 0:06:10]} 23. Qb5 {[%emt 0:05:47]} Qxd5 {[%emt 0:00:44]} 24. f6 {[%emt 0:01:10]} Qc6 {[%emt 0:01:24]} 25. Qxc6 {[%emt 0:00:10]} Nxc6 {[%emt 0:00:02]} 26. fxg7 {[%emt 0:00:10]} Kxg7 {[%emt 0:00:28]} 27. Nh5+ {[%emt 0:02:39]} Kg6 {[%emt 0:03:11]} 28. g4 {[%emt 0:01:11]} N6e5 {[%emt 0:03:37]} 29. Bxe5 {[%emt 0:00:36]} Nxe5 {[%emt 0:00:17]} 30. Nf4+ {[%emt 0:00:38]} Rxf4 {[%emt 0:01:14]} 31. Rxf4 {[%emt 0:30:06]} Nd3 {[%emt 0:30:04]} 32. Rcf1 {[%emt 0:00:14]} Nxf4 {[%emt 0:00:10]} 33. Rxf4 {[%emt 0:00:01]} a5 {[%emt 0:01:08]} 34. h4 {[%emt 0:00:50]} Ra8 {[%emt 0:00:52]} 35. g5 {[%emt 0:02:05]} a4 {[%emt 0:01:06]} 36. Rf6+ {[%emt 0:00:11]} Kh5 {[%emt 0:00:33]} 37. Kf2 {[%emt 0:08:21]} Kxh4 {[%emt 0:00:28]} 38. g6 {[%emt 0:00:06]} hxg6 {[%emt 0:00:35]} 39. Rxg6 {[%emt 0:00:08]} a3 {[%emt 0:03:31]} 40. Rg1 {[%emt 0:00:26]} a2 {[%emt 0:10:04]} 41. Ra1 {[%emt 0:00:13]} Kg4 {[%emt 0:00:17]} 42. Ke3 {[%emt 0:00:22]} Kf5 {[%emt 0:00:49]} 43. Kd3 {[%emt 0:00:51]} Ke5 {[%emt 0:01:04]} 44. Kc4 {[%emt 0:02:13]} Ke4 {[%emt 0:00:27]} 45. Kb3 {[%emt 0:05:41]} b5 {[%emt 0:00:25]} 46. Kc2 {[%emt 0:00:00]} Ke3 {[%emt 0:00:00]} 47. Re1+ {[%emt 0:00:00]} Kf2 {[%emt 0:00:00]} 48. Ra1 {[%emt 0:00:00]} Ke2 {[%emt 0:00:00]} 0-1

[Event "49th Rilton Cup 2019-20"]
[Site "Stockholm"]
[Date "2019.12.27"]
[Round "1.6"]
[White "Ajay Krishna, S."]
[Black "Moradiabadi, Elshan"]
[Result "0-1"]
[ECO "A04"]
[WhiteElo "2302"]
[BlackElo "2539"]
[Annotator "ChessBase"]
[PlyCount "82"]
[EventDate "2019.12.27"]
[EventType "swiss"]
[EventCountry "SWE"]
[SourceTitle "playchess.com"]
[Source "ChessBase"]
[SourceQuality "1"]
[TimeControl "30/5400+30:1800+30"]

1. Nf3 {[%emt 0:01:03]} g6 {[%emt 0:00:00]} 2. c4 {[%emt 0:02:49]} Bg7 {[%emt 0:01:05]} 3. g3 {[%emt 0:00:17]} c5 {[%emt 0:00:15]} 4. Bg2 {[%emt 0:01:51]} Nc6 {[%emt 0:00:02]} 5. O-O {[%emt 0:00:20]} d6 {[%emt 0:00:06]} 6. Nc3 {[%emt 0:01:07]} Qd7 {[%emt 0:00:58]} 7. e3 {[%emt 0:02:52]} Bxc3 {[%emt 0:00:58]} 8. dxc3 {[%emt 0:01:20]} Nf6 {[%emt 0:00:55]} 9. e4 {[%emt 0:08:24]} Qc7 {[%emt 0:02:24]} 10. Qe2 {[%emt 0:01:36]} h6 {[%emt 0:00:48]} 11. b4 {[%emt 0:17:40]} e5 {[%emt 0:01:55]} 12. a4 {[%emt 0:08:14]} Be6 {[%emt 0:06:55]} 13. Ba3 {[%emt 0:00:52]} Nd7 {[%emt 0:03:26]} 14. Rfd1 {[%emt 0:05:18]} a5 {[%emt 0:02:13]} 15. bxc5 {[%emt 0:03:03]} Nxc5 {[%emt 0:00:15]} 16. Bxc5 {[%emt 0:02:37]} dxc5 {[%emt 0:00:01]} 17. Ne1 {[%emt 0:00:25]} Ne7 {[%emt 0:01:26]} 18. Nc2 {[%emt 0:01:16]} O-O {[%emt 0:01:39]} 19. Ne3 {[%emt 0:03:07]} Rad8 {[%emt 0:03:16]} 20. Nd5 {[%emt 0:02:26]} Bxd5 {[%emt 0:00:06]} 21. cxd5 {[%emt 0:00:11]} Nc8 {[%emt 0:00:01]} 22. Rf1 {[%emt 0:00:51]} Nd6 {[%emt 0:05:16]} 23. f4 {[%emt 0:02:42]} Rde8 {[%emt 0:04:12]} 24. f5 {[%emt 0:03:06]} c4 {[%emt 0:05:59]} 25. Qe3 {[%emt 0:06:39]} Kh7 {[%emt 0:00:19]} 26. Rf2 {[%emt 0:04:00]} gxf5 {[%emt 0:00:19]} 27. Raf1 {[%emt 0:00:26]} Rg8 {[%emt 0:04:51]} 28. Kh1 {[%emt 0:00:51]} Qe7 {[%emt 0:05:19]} 29. Bh3 {[%emt 0:02:45]} fxe4 {[%emt 0:02:45]} 30. Bf5+ {[%emt 0:01:33]} Kg7 {[%emt 0:00:01]} 31. Bxe4 {[%emt 0:30:12]} Qg5 {[%emt 0:30:03]} 32. Qe2 {[%emt 0:00:41]} Rgf8 {[%emt 0:00:19]} 33. h4 {[%emt 0:01:40]} Nxe4 {[%emt 0:02:09]} 34. Qxe4 {[%emt 0:00:08]} Qg6 {[%emt 0:00:11]} 35. Rf5 {[%emt 0:00:08]} Kh8 {[%emt 0:03:54]} 36. Kh2 {[%emt 0:09:26]} f6 {[%emt 0:06:13]} 37. Qxc4 {[%emt 0:00:47]} e4 {[%emt 0:04:34]} 38. d6 {[%emt 0:03:09]} Rg8 {[%emt 0:00:39]} 39. Kh1 {[%emt 0:00:55]} Qxg3 {[%emt 0:03:00]} 40. Qe2 {[%emt 0:00:01]} Rg4 {[%emt 0:01:47]} 41. Rh5 {[%emt 0:00:42]} Qh3+ {[%emt 0:00:05]} 0-1

[Event "49th Rilton Cup 2019-20"]
[Site "Stockholm"]
[Date "2019.12.27"]
[Round "1.7"]
[White "Kulaots, Kaido"]
[Black "Ranaldi, Lucas"]
[Result "1-0"]
[ECO "A05"]
[WhiteElo "2538"]
[BlackElo "2296"]
[Annotator "ChessBase"]
[PlyCount "69"]
[EventDate "2019.12.27"]
[EventType "swiss"]
[EventCountry "SWE"]
[SourceTitle "playchess.com"]
[Source "ChessBase"]
[SourceQuality "1"]
[TimeControl "30/5400+30:1800+30"]

1. Nf3 {[%emt 0:00:00]} Nf6 {[%emt 0:00:00]} 2. g3 {[%emt 0:00:14]} b6 {[%emt 0:00:02]} 3. Bg2 {[%emt 0:00:08]} Bb7 {[%emt 0:00:06]} 4. O-O {[%emt 0:00:28]} c5 {[%emt 0:00:17]} 5. d3 {[%emt 0:00:59]} e6 {[%emt 0:00:47]} 6. e4 {[%emt 0:00:24]} d6 {[%emt 0:00:09]} 7. Nc3 {[%emt 0:03:12]} Be7 {[%emt 0:00:23]} 8. Ng5 {[%emt 0:02:09]} Nc6 {[%emt 0:06:15]} 9. f4 {[%emt 0:00:54]} O-O {[%emt 0:05:03]} 10. f5 {[%emt 0:11:42]} h6 {[%emt 0:10:06]} 11. Nh3 {[%emt 0:08:09]} exf5 {[%emt 0:08:37]} 12. Rxf5 {[%emt 0:00:41]} Bc8 {[%emt 0:09:36]} 13. Rf1 {[%emt 0:07:32]} Bg4 {[%emt 0:00:25]} 14. Qd2 {[%emt 0:00:13]} Bxh3 {[%emt 0:17:25]} 15. Bxh3 {[%emt 0:00:36]} d5 {[%emt 0:00:15]} 16. exd5 {[%emt 0:09:43]} Nxd5 {[%emt 0:00:13]} 17. Qg2 {[%emt 0:02:54]} Nxc3 {[%emt 0:02:59]} 18. bxc3 {[%emt 0:00:04]} Nb4 {[%emt 0:24:50]} 19. Bf5 {[%emt 0:33:12]} Bf6 {[%emt 0:01:24]} 20. Bd2 {[%emt 0:00:51]} Na6 {[%emt 0:07:29]} 21. Qf3 {[%emt 0:04:33]} Rb8 {[%emt 0:01:43]} 22. h4 {[%emt 0:02:40]} Nc7 {[%emt 0:00:21]} 23. Be4 {[%emt 0:00:43]} Ne8 {[%emt 0:01:43]} 24. Qf5 {[%emt 0:03:05]} g6 {[%emt 0:00:06]} 25. Qf3 {[%emt 0:01:23]} h5 {[%emt 0:01:02]} 26. g4 {[%emt 0:02:38]} Bxh4 {[%emt 0:01:01]} 27. gxh5 {[%emt 0:01:47]} Bg5 {[%emt 0:00:01]} 28. hxg6 {[%emt 0:00:27]} f5 {[%emt 0:00:01]} 29. Bxf5 {[%emt 0:00:46]} Kg7 {[%emt 0:01:35]} 30. Qh5 {[%emt 0:01:08]} Bxd2 {[%emt 0:00:13]} 31. Qh7+ {[%emt 0:30:16]} Kf6 {[%emt 0:30:01]} 32. Be4+ {[%emt 0:01:13]} Ke6 {[%emt 0:01:05]} 33. Rxf8 {[%emt 0:00:41]} Qg5+ {[%emt 0:00:03]} 34. Kh1 {[%emt 0:00:14]} Nf6 {[%emt 0:00:41]} 35. Qf7+ {[%emt 0:00:46] Kd5} 1-0

[Event "49th Rilton Cup 2019-20"]
[Site "Stockholm"]
[Date "2019.12.27"]
[Round "1.8"]
[White "Dragicevic, Drazen"]
[Black "Blomqvist, Erik"]
[Result "0-1"]
[ECO "A37"]
[WhiteElo "2294"]
[BlackElo "2537"]
[Annotator "ChessBase"]
[PlyCount "36"]
[EventDate "2019.12.27"]
[EventType "swiss"]
[EventCountry "SWE"]
[SourceTitle "playchess.com"]
[Source "ChessBase"]
[SourceQuality "1"]
[TimeControl "30/5400+30:1800+30"]

1. c4 {[%emt 0:00:00]} c5 {[%emt 0:00:22]} 2. Nf3 {[%emt 0:01:31]} Nc6 {[%emt 0:02:57]} 3. Nc3 {[%emt 0:00:44]} g6 {[%emt 0:00:32]} 4. g3 {[%emt 0:03:22]} Bg7 {[%emt 0:00:07]} 5. Bg2 {[%emt 0:00:06]} d6 {[%emt 0:00:20]} 6. O-O {[%emt 0:00:52]} Bf5 {[%emt 0:00:26]} 7. h3 {[%emt 0:04:30]} Nf6 {[%emt 0:00:41]} 8. d3 {[%emt 0:01:08]} O-O {[%emt 0:00:30]} 9. e4 {[%emt 0:04:01]} Bd7 {[%emt 0:00:23]} 10. Be3 {[%emt 0:00:25]} a6 {[%emt 0:03:05]} 11. a4 {[%emt 0:05:34]} Rb8 {[%emt 0:07:25]} 12. Kh2 {[%emt 0:14:11]} e5 {[%emt 0:01:56]} 13. Ne1 {[%emt 0:08:26]} Nd4 {[%emt 0:04:19]} 14. f4 {[%emt 0:16:34]} exf4 {[%emt 0:03:40]} 15. Bxf4 {[%emt 0:10:20]} Nh5 {[%emt 0:01:54]} 16. Bxd6 {[%emt 0:05:48]} Bxa4 {[%emt 0:04:37]} 17. Rxa4 {[%emt 0:10:14]} Qxd6 {[%emt 0:00:22]} 18. Qg4 {[%emt 0:00:36]} Nxg3 {[%emt 0:01:49]} 0-1

[Event "49th Rilton Cup 2019-20"]
[Site "Stockholm"]
[Date "2019.12.27"]
[Round "1.9"]
[White "Hillarp Persson, Tiger"]
[Black "Calzetta Ruiz, Monica"]
[Result "1-0"]
[ECO "A04"]
[WhiteElo "2537"]
[BlackElo "2292"]
[Annotator "ChessBase"]
[PlyCount "65"]
[EventDate "2019.12.27"]
[EventType "swiss"]
[EventCountry "SWE"]
[SourceTitle "playchess.com"]
[Source "ChessBase"]
[SourceQuality "1"]
[TimeControl "30/5400+30:1800+30"]

1. Nf3 {[%emt 0:00:00]} c5 {[%emt 0:00:00]} 2. g3 {[%emt 0:00:00]} Nc6 {[%emt 0:00:18]} 3. Bg2 {[%emt 0:00:00]} Nf6 {[%emt 0:02:12]} 4. O-O {[%emt 0:00:10]} d5 {[%emt 0:01:54]} 5. d4 {[%emt 0:00:08]} e6 {[%emt 0:00:47]} 6. b3 {[%emt 0:01:54]} cxd4 {[%emt 0:01:09]} 7. Nxd4 {[%emt 0:00:10]} Bc5 {[%emt 0:01:06]} 8. Nxc6 {[%emt 0:00:28]} bxc6 {[%emt 0:00:06]} 9. c4 {[%emt 0:00:08]} O-O {[%emt 0:00:25]} 10. Qc2 {[%emt 0:05:42]} Qe7 {[%emt 0:02:26]} 11. Nc3 {[%emt 0:04:40]} Ba6 {[%emt 0:05:41]} 12. Na4 {[%emt 0:19:05]} Bd4 {[%emt 0:04:23]} 13. Rb1 {[%emt 0:00:56]} Rab8 {[%emt 0:15:50]} 14. Rd1 {[%emt 0:11:15]} Be5 {[%emt 0:04:04]} 15. e4 {[%emt 0:19:26]} dxc4 {[%emt 0:01:44]} 16. Be3 {[%emt 0:00:30]} cxb3 {[%emt 0:04:35]} 17. axb3 {[%emt 0:04:20]} Rfd8 {[%emt 0:05:16]} 18. f4 {[%emt 0:04:48]} Ng4 {[%emt 0:18:07]} 19. Bc5 {[%emt 0:01:44]} Bd6 {[%emt 0:00:06]} 20. Rxd6 {[%emt 0:01:27]} Rxd6 {[%emt 0:00:05]} 21. e5 {[%emt 0:00:43]} Bd3 {[%emt 0:00:03]} 22. Qd1 {[%emt 0:07:31]} Bxb1 {[%emt 0:01:59]} 23. Bxd6 {[%emt 0:01:09]} Qd8 {[%emt 0:10:45]} 24. Qxb1 {[%emt 0:01:28]} h5 {[%emt 0:07:33]} 25. h3 {[%emt 0:03:49]} Ne3 {[%emt 0:00:34]} 26. Bxb8 {[%emt 0:01:44]} Qxb8 {[%emt 0:00:56]} 27. Qd3 {[%emt 0:01:31]} Nxg2 {[%emt 0:02:18]} 28. Kxg2 {[%emt 0:00:10]} Qb4 {[%emt 0:00:08]} 29. Nb2 {[%emt 0:00:59]} a5 {[%emt 0:01:06]} 30. h4 {[%emt 0:03:45]} c5 {[%emt 0:02:48]} 31. Qc2 {[%emt 0:30:22]} Qb7+ {[%emt 0:31:22]} 32. Kh2 {[%emt 0:00:16]} g6 {[%emt 0:03:53]} 33. Na4 {[%emt 0:00:53]} 1-0

[Event "49th Rilton Cup 2019-20"]
[Site "Stockholm"]
[Date "2019.12.27"]
[Round "1.11"]
[White "Schoppen, Casper"]
[Black "Andersson, Goran L."]
[Result "1-0"]
[ECO "E04"]
[WhiteElo "2507"]
[BlackElo "2282"]
[Annotator "ChessBase"]
[PlyCount "67"]
[EventDate "2019.12.27"]
[EventType "swiss"]
[EventCountry "SWE"]
[SourceTitle "playchess.com"]
[Source "ChessBase"]
[SourceQuality "1"]
[TimeControl "30/5400+30:1800+30"]

1. d4 {[%emt 0:00:00]} d5 {[%emt 0:00:00]} 2. c4 {[%emt 0:00:06]} e6 {[%emt 0:00:12]} 3. Nf3 {[%emt 0:00:31]} Nf6 {[%emt 0:00:14]} 4. g3 {[%emt 0:00:37]} dxc4 {[%emt 0:02:39]} 5. Bg2 {[%emt 0:00:51]} a6 {[%emt 0:01:43]} 6. O-O {[%emt 0:03:18]} Nc6 {[%emt 0:03:20]} 7. e3 {[%emt 0:06:55]} Rb8 {[%emt 0:01:26]} 8. Qe2 {[%emt 0:00:26]} b5 {[%emt 0:01:09]} 9. b3 {[%emt 0:00:16]} cxb3 {[%emt 0:07:44]} 10. axb3 {[%emt 0:00:09]} Bb7 {[%emt 0:00:35]} 11. Rd1 {[%emt 0:03:41]} Be7 {[%emt 0:08:56]} 12. Ba3 {[%emt 0:10:06]} Bxa3 {[%emt 0:04:44]} 13. Nxa3 {[%emt 0:00:32]} Nb4 {[%emt 0:00:42]} 14. Nc2 {[%emt 0:02:17]} Qd6 {[%emt 0:16:00]} 15. Ne5 {[%emt 0:12:39]} Nxc2 {[%emt 0:03:03]} 16. Qxc2 {[%emt 0:00:13]} Bxg2 {[%emt 0:03:46]} 17. Kxg2 {[%emt 0:00:08]} O-O {[%emt 0:01:05]} 18. e4 {[%emt 0:04:58]} Rfc8 {[%emt 0:06:58]} 19. Nc6 {[%emt 0:02:08]} Rb6 {[%emt 0:00:32]} 20. Rac1 {[%emt 0:00:38]} Ne8 {[%emt 0:03:03]} 21. e5 {[%emt 0:04:13]} Qd5+ {[%emt 0:04:57]} 22. Kg1 {[%emt 0:02:03]} Kf8 {[%emt 0:02:54]} 23. Nb4 {[%emt 0:01:41]} Qd7 {[%emt 0:01:23]} 24. d5 {[%emt 0:08:28]} f5 {[%emt 0:03:52]} 25. Qc5+ {[%emt 0:02:28]} Kf7 {[%emt 0:03:10]} 26. Nc6 {[%emt 0:04:23]} exd5 {[%emt 0:04:15]} 27. Rxd5 {[%emt 0:00:37]} Qxc6 {[%emt 0:03:38]} 28. Qxc6 {[%emt 0:00:13]} Rxc6 {[%emt 0:00:03]} 29. Rxc6 {[%emt 0:00:08]} Ke7 {[%emt 0:00:48]} 30. f4 {[%emt 0:03:04]} Ra8 {[%emt 0:03:57]} 31. e6 {[%emt 0:32:23]} Nd6 {[%emt 0:33:33]} 32. Rxc7+ {[%emt 0:00:09]} Kxe6 {[%emt 0:00:01]} 33. Re5+ {[%emt 0:00:08]} Kf6 {[%emt 0:00:13]} 34. Rce7 {[%emt 0:00:12]} 1-0

[Event "49th Rilton Cup 2019-20"]
[Site "Stockholm"]
[Date "2019.12.27"]
[Round "1.12"]
[White "Larsen, Karsten"]
[Black "Hauge, Lars Oskar"]
[Result "1-0"]
[ECO "A04"]
[WhiteElo "2278"]
[BlackElo "2504"]
[Annotator "ChessBase"]
[PlyCount "87"]
[EventDate "2019.12.27"]
[EventType "swiss"]
[EventCountry "SWE"]
[SourceTitle "playchess.com"]
[Source "ChessBase"]
[SourceQuality "1"]
[TimeControl "30/5400+30:1800+30"]

1. Nf3 {[%emt 0:00:00]} f5 {[%emt 0:00:00]} 2. d4 {[%emt 0:06:22]} Nf6 {[%emt 0:01:15]} 3. Nc3 {[%emt 0:06:18]} e6 {[%emt 0:01:57]} 4. a3 {[%emt 0:09:40]} Be7 {[%emt 0:09:45]} 5. Bg5 {[%emt 0:03:40]} d5 {[%emt 0:00:05]} 6. e3 {[%emt 0:02:07]} O-O {[%emt 0:01:13]} 7. Ne2 {[%emt 0:07:36]} c5 {[%emt 0:07:03]} 8. c3 {[%emt 0:08:24]} Nc6 {[%emt 0:01:30]} 9. Nf4 {[%emt 0:02:42]} c4 {[%emt 0:05:06]} 10. g3 {[%emt 0:06:41]} b5 {[%emt 0:01:08]} 11. Bg2 {[%emt 0:04:21]} Rb8 {[%emt 0:01:06]} 12. O-O {[%emt 0:01:04]} a5 {[%emt 0:02:46]} 13. Nd2 {[%emt 0:03:01]} Ne8 {[%emt 0:12:43]} 14. Bxe7 {[%emt 0:00:42]} Nxe7 {[%emt 0:00:06]} 15. h4 {[%emt 0:09:38]} Nc7 {[%emt 0:01:22]} 16. Qc2 {[%emt 0:07:29]} Nc6 {[%emt 0:00:15]} 17. Rfb1 {[%emt 0:02:39]} Qd6 {[%emt 0:00:27]} 18. b3 {[%emt 0:04:30]} Bd7 {[%emt 0:01:23]} 19. a4 {[%emt 0:05:33]} cxb3 {[%emt 0:11:57]} 20. Nxb3 {[%emt 0:00:08]} e5 {[%emt 0:03:59]} 21. dxe5 {[%emt 0:02:04]} Nxe5 {[%emt 0:00:05]} 22. axb5 {[%emt 0:00:36]} Nc4 {[%emt 0:02:02]} 23. Nd4 {[%emt 0:03:13]} Na3 {[%emt 0:01:45]} 24. Rxa3 {[%emt 0:00:05]} Qxa3 {[%emt 0:00:04]} 25. b6 {[%emt 0:00:14]} Na6 {[%emt 0:01:12]} 26. Nxd5 {[%emt 0:01:19]} Qd6 {[%emt 0:00:15]} 27. Qa2 {[%emt 0:00:38]} Nc5 {[%emt 0:01:32]} 28. Qxa5 {[%emt 0:00:38]} Kh8 {[%emt 0:00:54]} 29. Qb4 {[%emt 0:00:28]} Rfc8 {[%emt 0:00:36]} 30. Kh2 {[%emt 0:01:33]} Qe5 {[%emt 0:00:21]} 31. Kg1 {[%emt 0:30:35]} Ne4 {[%emt 0:32:35]} 32. c4 {[%emt 0:00:09]} Re8 {[%emt 0:01:15]} 33. Rc1 {[%emt 0:01:00]} Ra8 {[%emt 0:07:22]} 34. Nf3 {[%emt 0:00:27]} Qb8 {[%emt 0:00:41]} 35. Nc7 {[%emt 0:00:33]} Ra4 {[%emt 0:00:39]} 36. Qb2 {[%emt 0:00:27]} Re7 {[%emt 0:00:20]} 37. Nd4 {[%emt 0:00:47]} Nc5 {[%emt 0:00:18]} 38. Qb1 {[%emt 0:00:34]} Rf7 {[%emt 0:04:51]} 39. Nc6 {[%emt 0:00:37]} Qc8 {[%emt 0:06:32]} 40. Ne5 {[%emt 0:00:47]} Re7 {[%emt 0:00:17]} 41. Nxd7 {[%emt 0:00:00]} Qxd7 {[%emt 0:00:00]} 42. Rd1 {[%emt 0:00:00]} Rb4 {[%emt 0:00:00]} 43. Qa1 {[%emt 0:00:00]} Ra4 {[%emt 0:00:00]} 44. Qxa4 {[%emt 0:00:00]} 1-0